bitfinex/quotes_ETHUSD_20210401
["timestamp","ask_amount","ask_price","bid_price","bid_amount"]
[1617288441322,8.18461,1928.3,1928.1,0.95]
[1617288441725,18.8,1928.2,1928.1,0.95]
[1617288441923,28.8,1928.2,1928.1,0.95]
[1617288442359,30.1582,1928.2,1928.1,0.95]
[1617288442756,26.8582,1928.2,1928.1,0.95]
[1617288443556,27.7948,1928.2,1928.1,0.95]
[1617288445365,35.57964,1928.2,1928.1,0.95]
[1617288446170,36.77964,1928.2,1928.1,0.95]
[1617288446768,45.42964,1928.2,1928.1,0.0001]
[1617288446972,46.62964,1928.2,1928.1,0.0001]
[1617288447172,48.78364,1928.2,1927.6,1.0]
[1617288447371,24.76,1927.7,1927.6,1.0]
[1617288447574,24.76,1927.7,1927.6,0.0001]
[1617288447575,43.3946,1927.7,1927.6,0.0001]
[1617288447769,44.7671,1927.7,1927.6,0.0001]
[1617288448072,0.39,1927.4,1927.1,1.0]
[1617288448271,8.17824,1927.4,1927.1,1.28]
[1617288448469,8.17824,1927.4,1927.1,1.23]
[1617288448670,3.3,1927.3,1927.1,1.63]
[1617288448973,1.3782,1927.2,1927.1,1.23]
[1617288449192,2.4019,1927.2,1927.1,1.23]
[1617288449389,2.0563,1927.2,1927.1,1.23]
[1617288449597,2.3747,1927.2,1927.1,1.23]
[1617288449789,2.0619,1927.2,1927.1,1.23]
[1617288449989,2.1343,1927.2,1927.1,1.23]
[1617288450199,1.0237,1927.2,1927.1,0.95]
[1617288450693,2.4027,1927.2,1927.1,0.95]
[1617288450893,1.0237,1927.2,1927.1,0.95]
[1617288451092,2.1049,1927.2,1927.1,0.95]
[1617288451295,1.0237,1927.2,1927.1,0.95]
[1617288451498,12.2363,1927.2,1927.1,0.95]
[1617288452719,2.2363,1927.2,1927.1,0.95]
[1617288453421,1.2126,1927.2,1927.1,0.95]
[1617288453621,10.38778688,1927.5,1927.1,0.95]
[1617288453824,1.0997,1927.4,1927.1,0.95]
[1617288454127,10.38778688,1927.5,1927.1,0.95]
[1617288454128,6.49366688,1927.5,1927.1,0.95]
[1617288454343,18.17601688,1927.5,1927.1,0.95]
[1617288455941,18.17601688,1927.5,1927.1,5.96]
[1617288456156,6.11366688,1927.5,1927.1,6.35]
[1617288456646,6.11366688,1927.5,1927.1,5.96]
[1617288456647,6.52366688,1927.5,1927.1,5.96]
[1617288456848,6.52366688,1927.5,1927.1,0.95]
[1617288457671,14.31167688,1927.5,1927.1,0.95]
[1617288458873,6.52366688,1927.5,1927.1,0.95]
[1617288459692,6.11366688,1927.5,1927.1,0.95]
[1617288460196,1.7984,1927.8,1927.3,0.38]
[1617288460397,10.16914836,1928.0,1927.4,0.4]
[1617288460598,10.16914836,1928.0,1927.5,7.55018453]
[1617288460599,13.2932161,1928.0,1927.5,7.55018453]
[1617288460796,23.92081218,1928.3,1927.5,16.36328453]
[1617288460996,23.92081218,1928.3,1927.7,0.336]
[1617288460997,14.68445912,1928.3,1927.7,0.336]
[1617288461195,1.2222352,1928.4,1927.7,0.336]
[1617288461196,0.14,1928.4,1927.7,8.11999]
[1617288461397,0.14,1928.4,1927.9,0.38]
[1617288461594,0.14,1928.4,1927.9,7.4826]
[1617288462645,0.14,1928.4,1928.1,4.27161]
[1617288462851,5.83631025,1928.7,1928.1,4.27161]
[1617288463046,5.97631025,1928.7,1928.1,4.27161]
[1617288463249,5.97631025,1928.7,1928.1,3.89161]
[1617288463250,0.41,1928.5,1928.1,3.89161]
[1617288463548,0.41,1928.5,1927.9,0.287]
[1617288463748,0.41,1928.5,1927.9,5.297]
[1617288463946,0.41,1928.5,1927.9,0.687]
[1617288464553,0.41,1928.5,1927.9,0.4]
[1617288464554,8.19405,1928.5,1927.9,0.4]
[1617288464747,2.9,1928.4,1927.9,0.4]
[1617288464948,3.04,1928.4,1927.9,0.4]
[1617288465146,3.04,1928.4,1928.0,0.4]
[1617288465348,0.14,1928.4,1928.0,0.4]
[1617288465750,9.12456,1928.4,1927.8,4.17214]
[1617288465950,0.41,1928.3,1927.8,4.17214]
[1617288466150,0.41,1928.3,1927.8,4.55214]
[1617288466349,0.53,1928.4,1927.8,4.55214]
[1617288467252,7.7848,1928.3,1927.8,4.55214]
[1617288467469,7.7848,1928.3,1927.9,0.41]
[1617288468473,5.43631025,1928.7,1928.2,0.39]
[1617288468675,4.05681025,1928.7,1928.5,0.38]
[1617288468872,1.2732,1928.9,1928.5,0.38]
[1617288469172,1.2732,1928.9,1928.4,2.4841]
[1617288469173,5.38,1928.9,1928.4,2.8741]
[1617288469371,0.4,1928.9,1928.4,2.8741]
[1617288469674,1.6872,1928.9,1928.4,2.7641]
[1617288469870,0.4,1928.9,1928.4,1.709]
[1617288470093,0.41,1928.7,1928.4,1.709]
[1617288470395,0.38,1928.6,1928.1,0.09406894]
[1617288470594,0.4,1928.4,1928.0,5.01]
[1617288470895,0.4,1928.4,1927.9,5.77406894]
[1617288471196,0.4,1928.4,1927.9,5.29]
[1617288471395,0.4,1928.3,1927.9,0.28]
[1617288471596,0.4,1928.2,1927.5,10.37889]
[1617288471797,0.4,1928.2,1927.4,0.09406894]
[1617288471798,0.41,1928.0,1927.4,0.09406894]
[1617288471998,3.09679408,1927.9,1927.4,0.09406894]
[1617288472207,0.41,1928.0,1927.3,0.66]
[1617288472595,3.09679408,1927.9,1927.3,0.66]
[1617288472819,6.57679408,1927.9,1927.3,0.66]
[1617288473028,7.70179408,1927.9,1927.3,0.66]
[1617288473230,17.53368,1927.8,1927.3,0.61]
[1617288473428,3.48,1927.7,1927.3,0.61]
[1617288473623,3.48,1927.7,1927.2,3.89331]
[1617288473825,3.48,1927.7,1927.1,1.64]
[1617288474021,3.76,1927.6,1927.1,1.64]
[1617288474225,11.54773,1927.6,1927.1,1.64]
[1617288474827,11.16773,1927.6,1927.1,1.36]
[1617288475222,9.23635306,1927.7,1927.2,0.41]
[1617288475462,14.78037,1927.8,1927.3,0.39]
[1617288475861,14.78037,1927.8,1927.3,0.67]
[1617288476066,3.38,1927.6,1927.3,0.28]
[1617288476863,3.38,1927.6,1927.3,0.66]
[1617288477166,9.3367,1927.8,1927.4,0.4]
[1617288477368,1.2946,1927.9,1927.4,0.4]
[1617288477369,0.14,1927.9,1927.4,0.4]
[1617288477565,4.14,1927.9,1927.4,0.4]
[1617288478178,11.9266,1927.9,1927.4,0.4]
[1617288478369,3.38,1927.8,1927.4,0.4]
[1617288478568,11.701,1927.8,1927.4,0.4]
[1617288478768,3.16,1927.7,1927.4,0.4]
[1617288478968,3.16,1927.7,1927.3,4.57311]
[1617288479367,3.16,1927.7,1927.3,4.12311]
[1617288479567,3.54,1927.7,1927.3,3.84311]
[1617288480594,3.06,1927.6,1927.3,3.84311]
[1617288481793,3.06,1927.6,1927.2,0.28]
[1617288481993,3.06,1927.6,1927.1,14.13683]
[1617288482292,3.2,1927.6,1927.1,14.13683]
[1617288482691,3.2,1927.6,1927.1,18.03027]
[1617288483092,3.2,1927.6,1927.2,0.4]
[1617288483316,0.14,1927.6,1927.2,8.18625]
[1617288483519,18.05330306,1928.0,1927.6,0.39]
[1617288483719,21.58764836,1928.1,1927.6,0.39]
[1617288483720,7.31236836,1928.1,1927.6,0.39]
[1617288483921,6.11236836,1928.1,1927.6,0.39]
[1617288484222,1.1345,1928.2,1927.8,0.4]
[1617288484424,39.39905306,1928.6,1927.9,0.4]
[1617288484425,24.27745306,1928.6,1927.9,0.4]
[1617288484721,0.39,1928.4,1928.1,5.01]
[1617288485224,16.78796464,1928.7,1928.1,9.79042]
[1617288485420,0.38,1928.5,1928.1,9.79042]
[1617288485619,0.38,1928.5,1928.1,10.07042]
[1617288486541,0.38,1928.5,1928.1,9.18152]
[1617288486742,11.44352158,1928.7,1928.1,9.57152]
[1617288486942,0.39,1928.5,1928.1,9.18152]
[1617288487240,11.44352158,1928.7,1928.1,9.57152]
[1617288487646,0.4,1928.6,1928.1,4.17152]
[1617288487847,0.38,1928.4,1928.1,0.28]
[1617288489485,0.38,1928.4,1927.7,7.7843]
[1617288489687,0.38,1928.4,1927.8,0.39]
[1617288490390,0.4,1928.3,1927.7,0.37406894]
[1617288490588,0.4,1928.2,1927.7,0.37406894]
[1617288490886,0.4,1928.2,1927.7,0.28]
[1617288493391,8.18543,1928.2,1927.7,0.28]
[1617288494422,0.41,1928.0,1927.6,5.18895]
[1617288494622,0.41,1928.0,1927.4,8.17543]
[1617288494822,0.55,1928.0,1927.4,8.42643]
[1617288495225,5.77791619,1928.1,1927.5,0.39]
[1617288495626,5.77791619,1928.1,1927.6,5.01]
[1617288496340,5.77791619,1928.1,1927.6,0.28]
[1617288496539,0.41,1928.0,1927.6,0.28]
[1617288496739,1.5999,1928.0,1927.6,0.28]
[1617288497139,1.1899,1928.0,1927.7,0.38]
[1617288497340,0.52,1928.2,1927.7,5.39]
[1617288497541,0.52,1928.2,1927.7,0.38]
[1617288498144,0.14,1928.2,1927.7,5.39]
[1617288498341,3.89272,1928.3,1927.7,0.674]
[1617288498541,4.27272,1928.3,1927.7,5.684]
[1617288499364,0.39,1928.0,1927.6,7.9247]
[1617288499765,0.41,1927.8,1927.6,7.9247]
[1617288499965,0.41,1927.8,1927.6,7.7847]
[1617288500166,0.28,1928.1,1927.5,8.9026]
[1617288500967,0.28,1928.1,1927.5,3.8926]
[1617288501168,0.38,1927.8,1927.5,3.8926]
[1617288501591,0.38,1927.8,1927.4,0.23406894]
[1617288502304,0.38,1927.8,1927.5,0.39]
[1617288502507,4.56319,1928.1,1927.5,0.39]
[1617288502706,1.6027,1928.0,1927.3,10.37986]
[1617288502907,1.6027,1928.0,1927.3,10.76986]
[1617288503308,0.38,1927.9,1927.3,10.76986]
[1617288503907,1.1927,1928.0,1927.8,0.4]
[1617288504240,5.77791619,1928.5,1927.9,3.89154]
[1617288504439,5.77791619,1928.5,1927.9,5.52244]
[1617288505041,5.38791619,1928.5,1928.2,8.19283]
[1617288505240,5.38791619,1928.5,1928.2,19.94753]
[1617288505741,0.39,1928.8,1928.2,19.94753]
[1617288505943,0.39,1928.8,1928.2,22.0225377]
[1617288506141,0.39,1928.8,1928.4,7.78182]
[1617288507139,0.39,1928.8,1928.4,11.67246]
[1617288508339,0.38,1928.6,1928.4,11.67246]
[1617288508644,0.28,1928.9,1928.4,11.67246]
[1617288508842,20.36,1928.5,1928.2,6.6017]
[1617288509043,21.0,1928.3,1927.3,0.09406894]
[1617288509346,21.0,1928.3,1927.1,0.95]
[1617288509347,4.81109156,1928.2,1927.1,0.95]
[1617288509568,4.81109156,1928.2,1927.1,1.09]
[1617288509569,0.39,1927.5,1927.1,1.09]
[1617288509768,0.39,1927.6,1927.1,1.09]
[1617288509968,7.78749,1927.4,1927.1,1.09]
[1617288510666,7.78749,1927.4,1927.1,0.95]
[1617288513596,0.4,1927.3,1927.1,0.95]
[1617288513793,7.78749,1927.2,1927.1,0.95]
[1617288515216,7.76963015,1927.2,1927.1,0.95]
[1617288516715,7.7868,1927.4,1927.1,0.95]
[1617288517948,7.7868,1927.4,1926.9,0.47373041]
[1617288518142,7.7868,1927.4,1926.9,0.07373041]
[1617288518143,0.41,1927.3,1926.9,0.07373041]
[1617288518341,8.19714,1927.3,1926.9,0.07373041]
[1617288519340,8.19714,1927.3,1926.9,5.08373041]
[1617288521492,8.19714,1927.3,1926.9,0.07373041]
[1617288521796,3.89391,1927.2,1926.9,0.07373041]
[1617288525319,3.89391,1927.2,1926.9,0.46373041]
[1617288526122,3.89391,1927.2,1926.9,0.07373041]
[1617288527122,11.68141,1927.2,1926.9,0.07373041]
[1617288527624,0.4,1927.1,1926.9,0.07373041]
[1617288527846,6.85,1927.0,1926.9,0.07373041]
[1617288528048,0.4,1927.0,1926.9,0.07373041]
[1617288528445,8.1887,1927.0,1926.9,0.07373041]
[1617288530147,13.0887,1927.0,1926.7,11.2986]
[1617288530346,13.0887,1927.0,1926.7,5.2986]
[1617288530573,8.1887,1927.0,1926.7,5.2986]
[1617288531474,12.08313,1927.0,1926.7,5.2986]
[1617288532180,2.78,1926.9,1926.7,5.2986]
[1617288532774,0.41,1926.8,1926.7,5.2986]
[1617288533696,10.56892,1926.9,1926.7,5.2986]
[1617288535942,10.95892,1926.9,1926.7,5.2986]
[1617288538046,10.56892,1926.9,1926.7,5.2986]
[1617288538246,7.78892,1926.9,1926.7,5.2986]
[1617288540850,16.36292,1926.9,1926.7,5.2986]
[1617288541272,4.94,1926.8,1926.7,5.2986]
[1617288541473,4.94,1926.8,1926.7,0.10546]
[1617288541774,5.32,1926.8,1926.7,0.10546]
[1617288541975,0.4,1926.7,1926.6,1.13014195]
[1617288542174,8.18992,1926.7,1926.6,1.13014195]
[1617288542376,17.42627306,1926.7,1926.6,1.13014195]
[1617288542774,8.18992,1926.7,1926.6,1.13014195]
[1617288542975,22.02128558,1926.7,1926.6,1.13014195]
[1617288543176,22.02128558,1926.7,1926.6,1.0]
[1617288543177,11.57128558,1926.7,1926.6,1.0]
[1617288543600,0.41,1926.4,1926.1,1.0]
[1617288543799,7.6967,1926.4,1926.1,1.0]
[1617288543998,7.2867,1926.4,1926.1,1.0]
[1617288545101,7.79158,1926.3,1926.1,1.0]
[1617288545502,4.4,1926.2,1926.1,1.0]
[1617288545901,21.57126,1926.4,1926.1,1.0]
[1617288545902,11.18249,1926.4,1926.1,1.0]
[1617288546325,7.79108,1926.3,1926.1,1.0]
[1617288546724,2.84,1926.2,1926.1,1.0]
[1617288547955,7.79108,1926.3,1926.1,1.0]
[1617288548154,11.58249,1926.4,1926.1,1.0]
[1617288548962,11.18249,1926.4,1926.1,1.0]
[1617288549157,2.86,1926.3,1926.1,1.0]
[1617288549558,10.65113,1926.3,1926.1,1.0]
[1617288549871,7.79113,1926.3,1926.1,1.0]
[1617288550157,3.89579,1926.4,1926.1,1.0]
[1617288551257,7.79117,1926.3,1926.1,1.0]
[1617288553300,16.524476,1926.2,1926.1,1.0]
[1617288553501,20.784476,1926.2,1926.1,1.0]
[1617288555202,28.576236,1926.2,1926.1,1.0]
[1617288555404,24.716236,1926.2,1926.1,1.0]
[1617288558229,8.9,1926.1,1925.6,1.0]
[1617288558525,7.79291,1925.9,1925.6,1.0]
[1617288561252,8.17291,1925.9,1925.6,1.0]
[1617288562074,7.79291,1925.9,1925.6,1.0]
[1617288563677,10.69,1925.7,1925.6,1.0]
[1617288564478,18.7394,1925.7,1925.6,1.0]
[1617288565905,18.3494,1925.7,1925.6,1.0]
[1617288566508,27.74361,1925.7,1925.1,1.0]
[1617288566708,11.09,1925.2,1925.1,1.0]
[1617288566906,20.3074,1925.2,1925.1,1.0]
[1617288567337,19.9174,1925.2,1925.1,1.0]
[1617288567634,9.6074,1925.2,1925.1,1.0]
[1617288567832,9.2174,1925.2,1925.1,1.0]
[1617288568236,17.01395,1925.2,1925.1,1.0]
[1617288569857,17.41395,1925.2,1925.1,1.0]
[1617288570355,26.65030306,1925.2,1925.1,1.0]
[1617288571461,26.25030306,1925.2,1925.1,1.0]
[1617288571656,17.01395,1925.2,1925.1,1.0]
[1617288572477,17.42395,1925.2,1925.1,1.0]
[1617288573179,9.2174,1925.2,1925.1,1.0]
[1617288573380,1.48,1925.3,1925.1,1.0]
[1617288573790,13.13434306,1925.4,1925.2,0.4]
[1617288573981,3.89799,1925.4,1925.2,0.4]
[1617288574382,14.43239306,1925.8,1925.3,0.39]
[1617288574683,4.6,1925.7,1925.3,0.53]
[1617288575405,3.89661,1925.7,1925.3,0.53]
[1617288575603,3.89661,1925.7,1925.4,0.38]
[1617288576605,3.89661,1925.7,1925.4,1.42715359]
[1617288576806,3.89661,1925.7,1925.4,0.38]
[1617288577928,3.89661,1925.7,1925.6,0.4]
[1617288579432,3.89661,1925.7,1925.3,7.93307]
[1617288579730,3.89661,1925.7,1925.3,8.33307]
[1617288580376,3.89661,1925.7,1925.3,0.54]
[1617288580578,3.89661,1925.7,1925.3,0.14]
[1617288580777,12.08134,1925.7,1925.3,0.14]
[1617288580978,2.68,1925.6,1925.3,0.14]
[1617288581177,9.3018,1925.6,1925.3,0.14]
[1617288581780,13.19929,1925.6,1925.2,0.11732324]
[1617288582177,20.99427,1925.6,1925.2,0.11732324]
[1617288582378,3.2,1925.5,1925.2,0.11732324]
[1617288582879,3.62,1925.4,1925.2,0.11732324]
[1617288583080,18.31427,1925.6,1925.2,0.11732324]
[1617288583281,10.51929,1925.6,1925.2,0.52732324]
[1617288583480,10.92929,1925.6,1925.2,0.11732324]
[1617288583984,10.51929,1925.6,1925.2,0.11732324]
[1617288584380,10.51929,1925.6,1925.3,0.39]
[1617288585184,10.51929,1925.6,1925.5,0.41]
[1617288585601,6.6218,1925.6,1925.5,0.41]
[1617288585803,9.23635306,1926.0,1925.5,0.41]
[1617288586103,0.38,1926.1,1925.8,0.39]
[1617288586104,0.28,1926.1,1925.8,0.39]
[1617288586305,4.17611,1926.1,1925.8,0.39]
[1617288586805,3.89611,1926.1,1925.9,0.38]
[1617288587402,3.89611,1926.1,1926.0,0.38]
[1617288588457,1.2,1926.5,1926.0,0.38]
[1617288589058,16.22645306,1926.7,1926.0,0.38]
[1617288589259,3.89521,1926.4,1926.0,0.38]
[1617288589858,11.68657,1926.4,1926.0,0.38]
[1617288590159,4.17521,1926.4,1926.0,0.38]
[1617288590557,3.89521,1926.4,1926.0,0.38]
[1617288590958,5.09521,1926.4,1926.0,0.38]
[1617288591260,3.89622,1926.1,1925.8,0.13060835]
[1617288592163,11.68866,1926.1,1925.8,0.13060835]
[1617288593606,3.89622,1926.1,1926.0,0.38]
[1617288595509,3.89622,1926.1,1925.9,0.41]
[1617288595709,3.89622,1926.1,1925.8,0.13060835]
[1617288595710,4.29622,1926.1,1925.8,0.13060835]
[1617288595910,12.08873,1926.1,1925.8,0.13060835]
[1617288596313,11.68873,1926.1,1925.8,0.13060835]
[1617288596712,11.68873,1926.1,1925.8,0.52060835]
[1617288597013,2.68,1926.0,1925.8,0.13060835]
[1617288597215,11.68873,1926.1,1925.8,0.53060835]
[1617288598418,2.68,1926.0,1925.8,0.13060835]
[1617288598616,10.47281,1926.0,1925.8,0.13060835]
[1617288600631,13.83360874,1926.0,1925.8,0.13060835]
[1617288600828,3.89665,1925.7,1925.5,1.02954541]
[1617288601028,3.89665,1925.7,1925.4,0.55]
[1617288602657,3.89665,1925.7,1925.5,0.39]
[1617288603153,3.89665,1925.7,1925.4,0.14]
[1617288603454,3.89665,1925.7,1925.3,0.56294664]
[1617288604678,3.89665,1925.7,1925.3,8.35591664]
[1617288604887,3.89665,1925.7,1925.5,0.39]
[1617288605579,15.97658,1926.1,1925.7,0.39]
[1617288605580,5.19553,1926.1,1925.7,0.39]
[1617288605783,1.3461,1926.5,1925.7,8.18113]
[1617288605983,3.8953,1926.3,1925.8,0.14]
[1617288606181,3.8953,1926.3,1925.9,0.38]
[1617288607904,3.8953,1926.3,1926.0,0.41]
[1617288608206,3.8953,1926.3,1925.9,8.82435465]
[1617288608513,1.2,1926.5,1926.0,11.54212644]
[1617288608713,1.2,1926.5,1926.0,11.68212644]
[1617288609110,1.2,1926.5,1926.1,7.0]
[1617288609332,1.2,1926.5,1926.2,11.13703644]
[1617288609532,1.2,1926.5,1926.2,18.13703644]
[1617288611132,1.2,1926.5,1926.4,19.36]
[1617288611433,1.2,1926.5,1926.4,28.564]
[1617288611633,1.2,1926.5,1926.4,28.964]
[1617288612089,1.2,1926.5,1926.4,39.34697]
[1617288612283,0.05540778,1927.1,1926.4,61.58697]
[1617288612589,0.05540778,1927.1,1927.0,15.19339764]
[1617288612984,1.0,1927.4,1927.0,20.20339764]
[1617288613184,0.05540778,1927.1,1927.0,20.29746658]
[1617288613386,0.05540778,1927.1,1927.0,25.02339764]
[1617288613583,1.04364611,1927.1,1927.0,25.02339764]
[1617288613783,0.05540778,1927.1,1927.0,25.02339764]
[1617288615989,0.05540778,1927.1,1927.0,13.17339764]
[1617288616788,0.05540778,1927.1,1927.0,8.16339764]
[1617288618608,0.05540778,1927.1,1927.0,13.17339764]
[1617288619009,4.84302,1927.4,1927.0,13.17339764]
[1617288619010,4.84302,1927.4,1927.0,9.83]
[1617288619509,4.84302,1927.4,1927.0,2.82345813]
[1617288619510,0.05540778,1927.1,1927.0,2.82345813]
[1617288620038,0.05540778,1927.1,1927.0,5.01]
[1617288620442,0.05540778,1927.1,1926.9,5.15]
[1617288620638,0.05540778,1927.1,1926.7,2.91425714]
[1617288620639,0.05540778,1927.1,1927.0,0.16215819]
[1617288621443,7.67241542,1927.1,1927.0,0.16215819]
[1617288621641,4.32901778,1927.1,1927.0,0.16215819]
[1617288622139,15.42901778,1927.1,1926.6,11.4701]
[1617288622401,0.41,1926.9,1926.6,11.4701]
[1617288622604,3.89436,1926.8,1926.6,11.4701]
[1617288623504,0.38,1926.5,1926.0,0.09406894]
[1617288623705,0.38,1926.5,1925.9,0.09406894]
[1617288623706,3.89538,1926.3,1925.9,0.09406894]
[1617288623905,11.12808,1926.3,1925.8,0.47406894]
[1617288624103,11.12808,1926.3,1925.8,0.38]
[1617288624504,11.12808,1926.3,1925.8,7.38]
[1617288624704,11.12808,1926.3,1925.9,5.01]
[1617288624905,11.12808,1926.3,1925.9,12.01]
[1617288627108,11.12808,1926.3,1925.9,19.79982]
[1617288627313,11.12808,1926.3,1926.0,0.38]
[1617288627314,7.2327,1926.3,1926.0,0.38]
[1617288627612,4.29442,1926.7,1926.1,0.41]
[1617288627817,3.89442,1926.7,1926.2,0.54]
[1617288628712,3.89442,1926.7,1926.2,5.55]
[1617288629012,3.89442,1926.7,1926.2,0.54]
[1617288629213,3.89442,1926.7,1926.3,7.78835]
[1617288629419,0.05540763,1927.1,1926.5,5.01]
[1617288629618,0.05540763,1927.1,1926.5,5.41]
[1617288630241,0.05540763,1927.1,1926.5,0.4]
[1617288630544,0.05540763,1927.1,1926.7,7.78659]
[1617288630840,0.05540763,1927.1,1926.7,9.01805737]
[1617288631241,4.28327,1927.2,1926.7,18.08315737]
[1617288631442,0.05540763,1927.1,1926.7,21.78315737]
[1617288632042,0.05540763,1927.1,1926.9,5.01]
[1617288632244,0.05540763,1927.1,1926.9,12.79578]
[1617288632442,0.05540763,1927.1,1927.0,19.31]
[1617288633967,0.95,1927.4,1927.1,8.35339764]
[1617288634165,0.95,1927.4,1927.1,13.21339764]
[1617288634467,0.95,1927.4,1927.3,13.29339764]
[1617288634664,0.95,1927.4,1927.3,9.95]
[1617288635065,0.95,1927.4,1927.2,6.04870361]
[1617288635264,0.95,1927.4,1927.2,1.03870361]
[1617288635893,0.95,1927.4,1927.2,6.04870361]
[1617288636194,0.95,1927.4,1927.2,8.82364361]
[1617288636394,0.95,1927.4,1927.2,13.20364361]
[1617288637094,0.95,1927.4,1927.2,12.16494]
[1617288637928,0.95,1927.4,1927.2,15.50833764]
[1617288638128,0.95,1927.4,1927.2,12.16494]
[1617288638324,0.95,1927.4,1927.3,10.15]
[1617288638524,0.95,1927.4,1927.3,22.80036827]
[1617288640523,0.95,1927.4,1927.3,21.77469]
[1617288640759,0.95,1927.4,1927.3,21.96478797]
[1617288641565,0.95,1927.4,1927.3,29.45288797]
[1617288641963,0.95,1927.4,1927.3,34.46288797]
[1617288642164,0.95,1927.4,1927.3,34.85288797]
[1617288642965,0.95,1927.4,1927.3,41.85288797]
[1617288646098,0.95,1927.4,1927.3,43.05288797]
[1617288646493,0.95,1927.4,1927.3,41.85288797]
[1617288647893,0.95,1927.4,1927.3,41.46288797]
[1617288648631,0.95,1927.4,1927.3,34.46288797]
[1617288650724,0.95,1927.4,1927.3,34.86288797]
[1617288651031,0.95,1927.4,1927.3,29.45288797]
[1617288652241,0.95,1927.4,1927.3,34.46288797]
[1617288660914,0.92,1927.4,1927.3,34.46288797]
[1617288662740,0.92,1927.4,1927.3,24.31288797]
[1617288663041,0.92,1927.4,1927.3,7.97478797]
[1617288663042,1.32,1927.4,1927.3,7.97478797]
[1617288663244,11.8296,1927.4,1927.3,0.19009797]
[1617288663445,0.38,1926.8,1926.7,10.50713027]
[1617288663646,0.38,1926.8,1926.7,0.12387027]
[1617288663843,0.38,1926.8,1926.3,12.97643]
[1617288664872,0.38,1926.8,1926.3,15.97643]
[1617288664873,1.3677,1926.7,1926.3,15.97643]
[1617288665173,2.0195,1926.9,1926.5,10.38388]
[1617288665377,3.89427,1926.7,1926.5,10.77388]
[1617288666078,3.89427,1926.7,1926.5,10.38388]
[1617288666274,3.89427,1926.7,1926.5,14.36388]
[1617288666475,3.89339,1927.0,1926.5,14.36388]
[1617288666678,4.17339,1927.0,1926.5,14.36388]
[1617288666990,5.60909,1927.0,1926.5,14.36388]
[1617288667590,5.32909,1927.0,1926.5,14.36388]
[1617288667793,5.32909,1927.0,1926.6,3.34339764]
[1617288667996,5.32909,1927.0,1926.6,4.38969138]
[1617288668195,4.92909,1927.0,1926.8,5.19527484]
[1617288668397,2.2566,1927.2,1926.8,5.19527484]
[1617288668600,2.2566,1927.2,1927.0,5.01]
[1617288668796,1.2,1927.2,1927.1,22.60339764]
[1617288668994,1.2,1927.2,1927.1,22.64]
[1617288669639,0.92,1927.4,1927.2,8.35339764]
[1617288669841,2.12,1927.4,1927.3,5.01]
[1617288670039,2.12,1927.4,1927.3,29.01]
[1617288670342,0.92,1927.4,1927.3,35.43]
[1617288671440,0.92,1927.4,1927.3,36.45581397]
[1617288671639,0.92,1927.4,1927.3,35.43]
[1617288672041,0.92,1927.4,1927.3,36.63]
[1617288672642,0.92,1927.4,1927.3,36.45827256]
[1617288673043,0.92,1927.4,1927.3,35.03]
[1617288673242,0.92,1927.4,1927.3,36.42743993]
[1617288673443,0.92,1927.4,1927.3,37.21743993]
[1617288674446,0.92,1927.4,1927.3,38.24301443]
[1617288674866,0.92,1927.4,1927.3,38.65301443]
[1617288675064,0.92,1927.4,1927.3,30.62743993]
[1617288675465,0.92,1927.4,1927.3,30.21743993]
[1617288675665,0.92,1927.4,1927.3,6.61743993]
[1617288675967,0.92,1927.4,1927.3,3.54083757]
[1617288676468,0.92,1927.4,1927.3,8.49743993]
[1617288676670,0.92,1927.4,1927.3,5.20743993]
[1617288676869,1.31,1927.4,1927.3,5.20743993]
[1617288677074,9.31,1927.4,1927.3,0.19743993]
[1617288677521,16.81,1927.4,1927.3,0.19743993]
[1617288677720,18.0657,1927.4,1926.8,10.38203]
[1617288678019,0.39,1927.0,1926.8,10.38203]
[1617288679627,6.9817306,1927.2,1926.8,10.38203]
[1617288679822,6.9817306,1927.2,1926.8,13.50203]
[1617288680224,3.89374,1927.2,1926.9,3.34339764]
[1617288680423,3.89374,1927.2,1926.9,8.35339764]
[1617288680724,3.89374,1927.2,1926.9,12.21339764]
[1617288680927,0.92,1927.4,1926.9,12.21339764]
[1617288680928,0.92,1927.4,1927.1,5.01]
[1617288681127,0.92,1927.4,1927.2,7.78441]
[1617288681326,0.92,1927.4,1927.3,21.26]
[1617288683166,0.92,1927.4,1927.3,21.3768038]
[1617288684181,0.92,1927.4,1927.3,27.4968038]
[1617288684773,0.92,1927.4,1927.3,28.52268962]
[1617288684972,0.92,1927.4,1927.3,27.4968038]
[1617288685569,0.92,1927.4,1927.3,11.2468038]
[1617288685771,0.92,1927.4,1927.3,14.54020144]
[1617288685974,0.92,1927.4,1927.3,9.45324749]
[1617288686381,1.31,1927.4,1927.3,5.0768038]
[1617288687573,1.31,1927.4,1927.3,0.1168038]
[1617288688593,1.31,1927.4,1927.2,7.78441]